fUST/lending_fUST_20260117
["ID","MTS","AMOUNT","RATE_DAILY","PERIOD"]
[402269124,1768641038483,-500.0,0.00016438,3]
[402269125,1768641038492,-500.0,0.00016438,3]
[402269126,1768641038502,-1016.59,0.00016438,3]
[402269127,1768641038511,-500.0,0.00016438,3]
[402269128,1768641038519,-1254.59,0.00016438,3]
[402269129,1768641038528,-500.0,0.00016438,2]
[402269130,1768641038537,-151.0,0.00016438,2]
[402269131,1768641038547,-500.0,0.00016438,2]
[402269132,1768641038560,-500.0,0.00016438,3]
[402269133,1768641038569,-2006.9,0.00016438,3]
[402269134,1768641038579,-500.0,0.00016438,3]
[402269135,1768641038589,-500.0,0.00016438,3]
[402269136,1768641038598,-500.0,0.00016438,3]
[402269137,1768641038608,-500.0,0.00016438,3]
[402269138,1768641038617,-500.0,0.00016438,3]
[402269139,1768641038630,-500.0,0.00016438,3]
[402269140,1768641038650,-500.0,0.00016438,3]
[402269141,1768641038669,-500.0,0.00016438,3]
[402269142,1768641038682,-500.0,0.00016438,3]
[402269143,1768641038692,-500.0,0.00016438,3]
[402269144,1768641038702,-500.0,0.00016438,3]
[402269145,1768641038711,-500.0,0.00016438,3]
[402269146,1768641038720,-500.0,0.00016438,3]
[402269147,1768641038730,-2338.27,0.00016438,3]
[402269148,1768641038739,-500.0,0.00016438,3]
[402269149,1768641038748,-939.95,0.00016438,3]
[402269150,1768641038757,-545.70994322,0.00016438,3]
[402269151,1768641038769,-1016.13,0.00016438,3]
[402269152,1768641038788,-535.27896173,0.00016438,3]
[402269153,1768641038808,-500.0,0.00016438,3]
[402269154,1768641038820,-500.0,0.00016438,3]
[402269155,1768641038835,-587.21,0.00016438,3]
[402269156,1768641038846,-500.0,0.00016438,3]
[402269157,1768641038856,-1859.94,0.00016438,3]
[402269158,1768641038867,-500.0,0.00016438,3]
[402269159,1768641038879,-500.0,0.00016438,3]
[402269160,1768641038891,-500.0,0.00016438,3]
[402269161,1768641038899,-816.49,0.00016438,3]
[402269162,1768641038907,-500.0,0.00016438,3]
[402269163,1768641038917,-500.0,0.00016438,3]
[402269164,1768641038928,-614.31374356,0.00016438,3]
[402269165,1768641038939,-500.0,0.00016438,3]
[402269166,1768641038951,-500.0,0.00016438,3]
[402269167,1768641038962,-1586.94,0.00016438,3]
[402269168,1768641038973,-500.0,0.00016438,3]
[402269169,1768641038983,-500.0,0.00016438,3]
[402269170,1768641038993,-500.0,0.00016438,3]
[402269171,1768641039003,-500.0,0.00016438,3]
[402269172,1768641039013,-500.0,0.00016438,3]
[402269173,1768641039023,-500.0,0.00016438,3]
[402269174,1768641039032,-1210.81,0.00016438,3]
[402269175,1768641039043,-775.14,0.00016438,3]
[402269176,1768641039053,-960.56,0.00016438,3]
[402269177,1768641039063,-172.6105479,0.00016438,3]
[402269178,1768641039073,-500.0,0.00016438,3]
[402269179,1768641039083,-1441.58,0.00016438,3]
[402269180,1768641039093,-500.0,0.00016438,3]
[402269181,1768641039102,-500.0,0.00016438,3]
[402269182,1768641039112,-500.0,0.00016438,3]
[402269183,1768641039121,-500.0,0.00016438,3]
[402269184,1768641039129,-500.0,0.00016438,3]
[402269185,1768641039139,-2140.55,0.00016438,3]
[402269186,1768641039148,-2007.96,0.00016438,3]
[402269187,1768641039158,-790.89,0.00016438,3]
[402269188,1768641039167,-1776.82,0.00016438,3]
[402269189,1768641039177,-740.56,0.00016438,3]
[402269190,1768641039187,-500.0,0.00016438,3]
[402269191,1768641039196,-500.0,0.00016438,3]
[402269192,1768641039205,-915.36,0.00016438,3]
[402269193,1768641039215,-500.0,0.00016438,3]
[402269194,1768641039224,-500.0,0.00016438,3]
[402269195,1768641039234,-500.0,0.00016438,3]
[402269196,1768641039243,-706.91,0.00016438,3]
[402269197,1768641039252,-500.0,0.00016438,3]
[402269198,1768641039261,-500.0,0.00016438,3]
[402269199,1768641039272,-500.0,0.00016438,3]
[402269200,1768641039281,-500.0,0.00016438,3]
[402269201,1768641039290,-905.9,0.00016438,3]
[402269202,1768641039299,-500.0,0.00016438,3]
[402269203,1768641039309,-500.0,0.00016438,3]
[402269204,1768641039318,-1036.96,0.00016438,3]
[402269205,1768641039327,-500.0,0.00016438,3]
[402269206,1768641039337,-923.41,0.00016438,3]
[402269207,1768641039346,-500.0,0.00016438,3]
[402269208,1768641039357,-500.0,0.00016438,3]
[402269209,1768641039367,-500.0,0.00016438,3]
[402269210,1768641039377,-850.25,0.00016438,3]
[402269211,1768641039387,-500.0,0.00016438,3]
[402269212,1768641039396,-1509.89,0.00016438,3]
[402269213,1768641039405,-500.0,0.00016438,3]
[402269214,1768641039415,-500.0,0.00016438,3]
[402269215,1768641039424,-501.16566781,0.00016438,3]
[402269216,1768641039435,-500.0,0.00016438,3]
[402269217,1768641039446,-531.74,0.00016438,3]
[402269218,1768641039455,-500.0,0.00016438,3]
[402269219,1768641039465,-1211.41,0.00016438,3]
[402269220,1768641039475,-500.0,0.00016438,3]
[402269221,1768641039485,-823.75,0.00016438,3]
[402269222,1768641039496,-500.0,0.00016438,3]
[402269223,1768641039505,-500.64667728,0.00016438,3]
[402269225,1768641039514,-500.0,0.00016438,3]
[402269227,1768641039524,-500.0,0.00016438,3]
[402269229,1768641039534,-500.0,0.00016438,3]
[402269231,1768641039543,-500.0,0.00016438,3]
[402269233,1768641039552,-825.73,0.00016438,3]
[402269235,1768641039560,-500.0,0.00016438,3]
[402269237,1768641039569,-500.0,0.00016438,3]
[402269239,1768641039578,-500.0,0.00016438,3]
[402269240,1768641039587,-1782.4,0.00016438,3]
[402269242,1768641039596,-1517.43,0.00016438,3]
[402269244,1768641039605,-582.69,0.00016438,3]
[402269246,1768641039615,-500.0,0.00016438,3]
[402269248,1768641039624,-574.44,0.00016438,3]
[402269250,1768641039633,-500.0,0.00016438,3]
[402269252,1768641039642,-609.64,0.00016438,3]
[402269254,1768641039651,-1368.93,0.00016438,3]
[402269256,1768641039660,-500.0,0.00016438,3]
[402269258,1768641039669,-1000.0,0.00016438,2]
[402269260,1768641039678,-500.0,0.00016438,3]
[402269262,1768641039687,-500.0,0.00016438,3]
[402269264,1768641039696,-2456.62,0.00016438,3]
[402269266,1768641039705,-500.0,0.00016438,3]
[402269268,1768641039714,-523.99827377,0.00016438,3]
[402269270,1768641039723,-540.82,0.00016438,3]
[402269272,1768641039732,-500.0,0.00016438,3]
[402269274,1768641039741,-1066.54,0.00016438,3]
[402269276,1768641039750,-500.0,0.00016438,3]
[402269278,1768641039758,-1184.11,0.00016438,3]
[402269280,1768641039768,-1759.84,0.00016438,3]
[402269282,1768641039777,-500.0,0.00016438,3]
[402269284,1768641039786,-500.0,0.00016438,3]
[402269286,1768641039796,-500.0,0.00016438,3]
[402269288,1768641039807,-1047.08,0.00016438,3]
[402269290,1768641039816,-1521.4,0.00016438,3]
[402269292,1768641039826,-500.0,0.00016438,3]
[402269294,1768641039836,-1993.96,0.00016438,3]
[402269296,1768641039845,-500.0,0.00016438,3]
[402269298,1768641039854,-617.87,0.00016438,3]
[402269300,1768641039863,-500.0,0.00016438,3]
[402269302,1768641039873,-158.63,0.00016438,2]
[402269304,1768641039882,-500.0,0.00016438,3]
[402269306,1768641039891,-500.0,0.00016438,3]
[402269308,1768641039902,-152.0,0.00016438,2]
[402269310,1768641039912,-500.0,0.00016438,3]
[402269312,1768641039921,-151.0,0.00016438,2]
[402269313,1768641039930,-151.0,0.00016438,2]
[402269315,1768641039939,-2016.32,0.00016438,3]
[402269317,1768641039949,-499.59360928,0.00016438,3]
[402269319,1768641039958,-500.0,0.00016438,3]
[402269321,1768641039968,-532.55606123,0.00016438,3]
[402269323,1768641039977,-500.0,0.00016438,3]
[402269325,1768641039987,-618.83,0.00016438,3]
[402269327,1768641039997,-500.0,0.00016438,3]
[402269329,1768641040006,-500.0,0.00016438,3]
[402269331,1768641040017,-500.0,0.00016438,3]
[402269333,1768641040026,-1542.76,0.00016438,3]
[402269335,1768641040035,-523.78,0.00016438,3]
[402269337,1768641040045,-500.0,0.00016438,3]
[402269339,1768641040054,-500.0,0.00016438,3]
[402269341,1768641040065,-500.0,0.00016438,3]
[402269343,1768641040076,-500.0,0.00016438,3]
[402269345,1768641040085,-500.0,0.00016438,3]
[402269347,1768641040095,-500.0,0.00016438,3]
[402269349,1768641040105,-500.0,0.00016438,3]
[402269351,1768641040115,-500.0,0.00016438,3]
[402269353,1768641040124,-500.0,0.00016438,3]
[402269355,1768641040134,-500.0,0.00016438,3]
[402269357,1768641040143,-500.0,0.00016438,3]
[402269359,1768641040153,-580.8,0.00016438,3]
[402269361,1768641040162,-500.0,0.00016438,3]
[402269363,1768641040172,-942.19,0.00016438,3]
[402269365,1768641040181,-500.0,0.00016438,3]
[402269367,1768641040190,-2703.42,0.00016438,3]
[402269369,1768641040199,-500.0,0.00016438,3]
[402269371,1768641040209,-799.26,0.00016438,3]
[402269373,1768641040219,-533.67555497,0.00016438,3]
[402269375,1768641040228,-500.0,0.00016438,3]
[402269377,1768641040238,-500.0,0.00016438,3]
[402269378,1768641040248,-500.0,0.00016438,3]
[402269380,1768641040257,-500.0,0.00016438,3]
[402269382,1768641040267,-1577.53,0.00016438,3]
[402269385,1768641040277,-1436.74,0.00016438,3]
[402269386,1768641040288,-500.0,0.00016438,3]
[402269389,1768641040298,-526.3812206,0.00016438,3]
[402269390,1768641040308,-500.0,0.00016438,3]
[402269392,1768641040318,-500.0,0.00016438,3]
[402269394,1768641040328,-1613.51,0.00016438,3]
[402269396,1768641040337,-500.0,0.00016438,3]
[402269398,1768641040346,-500.0,0.00016438,3]
[402269400,1768641040356,-500.0,0.00016438,3]
[402269402,1768641040365,-501.29993361,0.00016438,3]
[402269403,1768641040374,-500.0,0.00016438,3]
[402269404,1768641040383,-500.0,0.00016438,3]
[402269405,1768641040392,-500.0,0.00016438,3]
[402269406,1768641040401,-618.91,0.00016438,3]
[402269407,1768641040411,-1911.71,0.00016438,3]
[402269408,1768641040420,-1482.88,0.00016438,3]
[402269409,1768641040430,-500.0,0.00016438,3]
[402269410,1768641040439,-2136.32,0.00016438,3]
[402269411,1768641040448,-500.0,0.00016438,3]
[402269412,1768641040457,-500.0,0.00016438,3]
[402269413,1768641040466,-500.0,0.00016438,3]
[402269414,1768641040476,-645.08,0.00016438,3]
[402269415,1768641040485,-777.63,0.00016438,3]
[402269416,1768641040494,-500.0,0.00016438,3]
[402269417,1768641040504,-500.0,0.00016438,3]
[402269418,1768641040513,-500.0,0.00016438,3]
[402269419,1768641040522,-686.85,0.00016438,3]
[402269420,1768641040532,-500.0,0.00016438,3]
[402269421,1768641040541,-847.18,0.00016438,3]
[402269422,1768641040550,-500.0,0.00016438,3]
[402269423,1768641040560,-211.62283602,0.00016438,3]
[402269424,1768641040570,-500.0,0.00016438,3]
[402269425,1768641040579,-722.59,0.00016438,3]
[402269426,1768641040589,-500.0,0.00016438,3]
[402269427,1768641040598,-1132.01,0.00016438,3]
[402269428,1768641040607,-1199.96,0.00016438,3]
[402269429,1768641040616,-500.0,0.00016438,3]
[402269430,1768641040626,-1526.12,0.00016438,3]
[402269431,1768641040635,-500.0,0.00016438,3]
[402269432,1768641040645,-500.0,0.00016438,3]
[402269433,1768641040654,-500.0,0.00016438,3]
[402269434,1768641040664,-500.0,0.00016438,3]
[402269435,1768641040673,-791.73,0.00016438,3]
[402269436,1768641040682,-1719.9,0.00016438,3]
[402269437,1768641040691,-1851.83,0.00016438,3]
[402269438,1768641040700,-3788.27,0.00016438,3]
[402269439,1768641040710,-512.3,0.00016438,3]
[402269440,1768641040719,-1294.45,0.00016438,3]
[402269441,1768641040728,-500.0,0.00016438,3]
[402269442,1768641040738,-500.0,0.00016438,3]
[402269443,1768641040747,-500.0,0.00016438,3]
[402269444,1768641040756,-2020.66,0.00016438,3]
[402269445,1768641040765,-500.0,0.00016438,3]
[402269446,1768641040775,-1447.89,0.00016438,3]
[402269447,1768641040784,-500.0,0.00016438,3]
[402269449,1768641040794,-479.17924292,0.00016438,2]
[402269451,1768641040806,-1709.81,0.00016438,3]
[402269453,1768641040816,-500.0,0.00016438,3]
[402269455,1768641040827,-500.0,0.00016438,3]
[402269456,1768641040837,-1140.43,0.00016438,3]
[402269458,1768641040847,-730.33,0.00016438,3]
[402269460,1768641040857,-633.14,0.00016438,3]
[402269462,1768641040867,-1090.41,0.00016438,3]
[402269464,1768641040877,-500.0,0.00016438,3]
[402269466,1768641040887,-500.0,0.00016438,3]
[402269468,1768641040897,-500.0,0.00016438,3]
[402269470,1768641040907,-2132.97,0.00016438,3]
[402269472,1768641040917,-500.0,0.00016438,3]
[402269474,1768641040927,-514.45,0.00016438,3]
[402269476,1768641040937,-183.73779352,0.00016438,3]
[402269478,1768641040947,-1102.58,0.00016438,3]
[402269480,1768641040956,-500.0,0.00016438,3]
[402269482,1768641040966,-500.0,0.00016438,3]
[402269484,1768641040976,-1892.19,0.00016438,3]
[402269486,1768641040986,-151.0,0.00016438,2]
[402269488,1768641040995,-1094.24,0.00016438,3]
[402269490,1768641041005,-151.0,0.00016438,2]
[402269492,1768641041015,-618.02349392,0.00016438,3]
[402269494,1768641041025,-500.0,0.00016438,3]
[402269496,1768641041035,-309.96810054,0.00016438,3]
[402269498,1768641041044,-931.54,0.00016438,3]
[402269500,1768641041054,-617.76,0.00016438,3]
[402269502,1768641041064,-784.75,0.00016438,3]
[402269504,1768641041074,-500.0,0.00016438,3]
[402269507,1768641041084,-500.0,0.00016438,3]
[402269509,1768641041094,-500.0,0.00016438,3]
[402269511,1768641041103,-500.0,0.00016438,3]
[402269513,1768641041113,-423.66716387,0.00016438,3]
[402269515,1768641041123,-1670.51,0.00016438,3]
[402269517,1768641041132,-1717.32,0.00016438,3]
[402269519,1768641041141,-563.69,0.00016438,3]
[402269521,1768641041151,-500.0,0.00016438,3]
[402269523,1768641041160,-501.22117515,0.00016438,3]
[402269525,1768641041170,-500.0,0.00016438,3]
[402269527,1768641041179,-500.0,0.00016438,3]
[402269529,1768641041189,-834.37,0.00016438,3]
[402269531,1768641041199,-500.0,0.00016438,3]
[402269533,1768641041207,-913.11,0.00016438,3]
[402269535,1768641041217,-500.0,0.00016438,3]
[402269537,1768641041227,-500.0,0.00016438,3]
[402269539,1768641041236,-939.73,0.00016438,3]
[402269541,1768641041248,-500.0,0.00016438,3]
[402269543,1768641041258,-500.0,0.00016438,3]
[402269545,1768641041268,-1044.14,0.00016438,3]
[402269547,1768641041278,-500.0,0.00016438,3]
[402269549,1768641041287,-722.95,0.00016438,3]
[402269551,1768641041297,-500.0,0.00016438,3]
[402269553,1768641041306,-871.59,0.00016438,3]
[402269555,1768641041316,-721.62,0.00016438,3]
[402269557,1768641041326,-500.0,0.00016438,3]
[402269559,1768641041336,-500.0,0.00016438,3]
[402269561,1768641041345,-500.0,0.00016438,3]
[402269563,1768641041355,-500.0,0.00016438,3]
[402269565,1768641041366,-568.79,0.00016438,3]
[402269567,1768641041376,-500.0,0.00016438,3]
[402269570,1768641041387,-1451.63,0.00016438,3]
[402269572,1768641041397,-500.0,0.00016438,3]
[402269574,1768641041407,-1081.34,0.00016438,3]
[402269576,1768641041416,-518.59,0.00016438,3]
[402269578,1768641041433,-500.0,0.00016438,3]
[402269580,1768641041451,-567.25,0.00016438,3]
[402269582,1768641041460,-500.0,0.00016438,3]
[402269584,1768641041470,-500.0,0.00016438,3]
[402269586,1768641041480,-1177.76,0.00016438,3]
[402269588,1768641041489,-500.0,0.00016438,3]
[402269590,1768641041498,-522.78394003,0.00016438,3]
[402269592,1768641041508,-500.0,0.00016438,3]
[402269594,1768641041518,-1622.28,0.00016438,3]
[402269596,1768641041528,-700.32,0.00016438,3]
[402269598,1768641041540,-500.0,0.00016438,3]
[402269600,1768641041549,-500.0,0.00016438,3]
[402269602,1768641041559,-500.0,0.00016438,3]
[402269604,1768641041569,-533.25,0.00016438,3]
[402269606,1768641041579,-1431.76,0.00016438,3]
[402269608,1768641041588,-632.04690666,0.00016438,3]
[402269610,1768641041598,-500.0,0.00016438,3]
[402269613,1768641041609,-362.08497691,0.00016438,3]
[402269615,1768641041620,-500.0,0.00016438,3]
[402269617,1768641041630,-1412.19,0.00016438,3]
[402269619,1768641041639,-500.0,0.00016438,3]
[402269621,1768641041649,-500.0,0.00016438,3]
[402269623,1768641041658,-2815.19,0.00016438,3]
[402269625,1768641041668,-617.92,0.00016438,3]
[402269627,1768641041678,-501.51,0.00016438,3]
[402269629,1768641041688,-500.0,0.00016438,3]
[402269631,1768641041698,-2677.48,0.00016438,3]
[402269633,1768641041708,-581.87,0.00016438,3]
[402269635,1768641041718,-500.0,0.00016438,3]
[402269637,1768641041728,-630.14,0.00016438,3]
[402269639,1768641041738,-500.0,0.00016438,3]
[402269641,1768641041748,-1255.88,0.00016438,3]
[402269643,1768641041758,-500.0,0.00016438,3]
[402269645,1768641041768,-1456.0,0.00016438,3]
[402269647,1768641041778,-552.83,0.00016438,3]
[402269649,1768641041788,-500.0,0.00016438,3]
[402269651,1768641041797,-500.0,0.00016438,3]
[402269653,1768641041810,-577.84,0.00016438,3]
[402269655,1768641041819,-638.34,0.00016438,3]
[402269657,1768641041831,-467.49360859,0.00016438,3]
[402269659,1768641041840,-722.98,0.00016438,3]
[402269661,1768641041850,-1559.59,0.00016438,3]
[402269664,1768641041860,-500.0,0.00016438,3]
[402269666,1768641041870,-500.0,0.00016438,3]
[402269667,1768641041880,-500.0,0.00016438,3]
[402269669,1768641041890,-500.0,0.00016438,3]
[402269672,1768641041900,-500.0,0.00016438,3]
[402269674,1768641041910,-8441.37,0.00016438,3]
[402269676,1768641041919,-500.0,0.00016438,3]
[402269678,1768641041929,-500.0,0.00016438,3]
[402269680,1768641041939,-500.0,0.00016438,3]
[402269682,1768641041949,-500.0,0.00016438,3]
[402269684,1768641041958,-500.0,0.00016438,3]
[402269686,1768641041967,-500.0,0.00016438,3]
[402269688,1768641041977,-500.0,0.00016438,3]
[402269690,1768641041988,-500.0,0.00016438,3]
[402269692,1768641041997,-921.27,0.00016438,3]
[402269694,1768641042008,-500.0,0.00016438,3]
[402269696,1768641042017,-500.0,0.00016438,3]
[402269698,1768641042027,-1326.69,0.00016438,3]
[402269700,1768641042036,-645.09,0.00016438,3]
[402269702,1768641042046,-953.59,0.00016438,3]
[402269704,1768641042056,-500.0,0.00016438,3]
[402269706,1768641042065,-500.0,0.00016438,3]
[402269708,1768641042076,-828.55,0.00016438,3]
[402269710,1768641042086,-500.0,0.00016438,3]
[402269712,1768641042095,-500.0,0.00016438,3]
[402269714,1768641042105,-500.0,0.00016438,3]
[402269716,1768641042115,-1106.71,0.00016438,3]
[402269718,1768641042125,-500.0,0.00016438,3]
[402269721,1768641042135,-500.0,0.00016438,3]
[402269723,1768641042145,-598.89865208,0.00016438,3]
[402269725,1768641042155,-500.0,0.00016438,3]
[402269727,1768641042165,-693.9,0.00016438,3]
[402269729,1768641042175,-980.47,0.00016438,3]
[402269731,1768641042184,-500.0,0.00016438,3]
[402269733,1768641042194,-500.0,0.00016438,3]
[402269735,1768641042204,-500.0,0.00016438,3]
[402269737,1768641042214,-500.0,0.00016438,3]
[402269739,1768641042224,-1330.27,0.00016438,3]
[402269741,1768641042234,-782.18,0.00016438,3]
[402269743,1768641042245,-3211.22,0.00016438,3]
[402269745,1768641042255,-500.0,0.00016438,3]
[402269780,1768641042536,-500.0,0.00016438,3]
[402269782,1768641042550,-1075.34,0.00016438,3]
[402269784,1768641042561,-822.95,0.00016438,3]
[402269786,1768641042571,-500.0,0.00016438,3]
[402269788,1768641042582,-500.0,0.00016438,3]
[402269791,1768641042592,-1025.56,0.00016438,3]
[402269793,1768641042603,-1088.19,0.00016438,3]
[402269794,1768641042614,-784.27,0.00016438,3]
[402269796,1768641042625,-1239.92,0.00016438,3]
[402269798,1768641042635,-500.0,0.00016438,3]
[402269800,1768641042646,-500.0,0.00016438,3]
[402269802,1768641042655,-1186.93,0.00016438,3]
[402269804,1768641042664,-332.91217118,0.00016438,3]
[402269806,1768641042673,-500.0,0.00016438,3]
[402269808,1768641042683,-500.0,0.00016438,3]
[402269810,1768641042693,-1439.17,0.00016438,3]
[402269813,1768641042704,-281.28402588,0.00016438,3]
[402269815,1768641042716,-151.0,0.00016438,2]
[402269816,1768641042726,-500.0,0.00016438,3]
[402269819,1768641042736,-500.0,0.00016438,3]
[402269821,1768641042745,-151.0,0.00016438,2]
[402269823,1768641042756,-500.0,0.00016438,3]
[402269825,1768641042766,-151.0,0.00016438,2]
[402269827,1768641042775,-500.0,0.00016438,3]
[402269828,1768641042784,-2039.45,0.00016438,3]
[402269831,1768641042794,-164.045615,0.00016438,2]
[402269832,1768641042805,-450.64316952,0.00016438,3]
[402269835,1768641042815,-500.0,0.00016438,3]
[402269837,1768641042824,-692.94,0.00016438,3]
[402269839,1768641042833,-659.07,0.00016438,3]
[402269841,1768641042843,-1613.1,0.00016438,3]
[402269843,1768641042853,-2331.89,0.00016438,3]
[402269845,1768641042863,-500.0,0.00016438,3]
[402269847,1768641042873,-500.0,0.00016438,3]
[402269849,1768641042882,-500.0,0.00016438,3]
[402269851,1768641042892,-500.0,0.00016438,3]
[402269853,1768641042902,-500.0,0.00016438,3]
[402269856,1768641042913,-1806.23,0.00016438,3]
[402269859,1768641042922,-1957.0,0.00016438,3]
[402269861,1768641042931,-500.0,0.00016438,3]
[402269863,1768641042941,-1112.08,0.00016438,3]
[402269865,1768641042950,-500.0,0.00016438,3]
[402269867,1768641042959,-500.0,0.00016438,3]
[402269869,1768641042969,-619.77,0.00016438,3]
[402269871,1768641042978,-1659.97,0.00016438,3]
[402269873,1768641042987,-500.0,0.00016438,3]
[402269875,1768641042997,-500.0,0.00016438,3]
[402269877,1768641043006,-500.0,0.00016438,3]
[402269879,1768641043016,-500.0,0.00016438,3]
[402269881,1768641043025,-1530.01,0.00016438,3]
[402269883,1768641043034,-1089.71,0.00016438,3]
[402269885,1768641043044,-500.0,0.00016438,3]
[402269887,1768641043053,-508.15,0.00016438,3]
[402269889,1768641043063,-500.0,0.00016438,3]
[402269891,1768641043072,-500.0,0.00016438,3]
[402269893,1768641043082,-500.0,0.00016438,3]
[402269895,1768641043091,-500.0,0.00016438,3]
[402269897,1768641043100,-674.15,0.00016438,3]
[402269899,1768641043109,-1106.34,0.00016438,3]
[402269901,1768641043119,-500.0,0.00016438,3]
[402269903,1768641043128,-500.0,0.00016438,3]
[402269905,1768641043138,-733.19,0.00016438,3]
[402269907,1768641043147,-849.02,0.00016438,3]
[402269910,1768641043156,-500.0,0.00016438,3]
[402269912,1768641043166,-500.0,0.00016438,3]
[402269914,1768641043175,-972.38,0.00016438,3]
[402269915,1768641043185,-500.0,0.00016438,3]
[402269918,1768641043194,-863.5,0.00016438,3]
[402269920,1768641043203,-1628.03,0.00016438,3]
[402269922,1768641043213,-500.0,0.00016438,3]
[402269924,1768641043223,-500.0,0.00016438,3]
[402269926,1768641043232,-1072.76,0.00016438,3]
[402269928,1768641043242,-1506.77,0.00016438,3]
[402269930,1768641043252,-920.91,0.00016438,3]
[402269932,1768641043262,-500.0,0.00016438,3]
[402269934,1768641043271,-500.0,0.00016438,3]
[402269936,1768641043281,-500.0,0.00016438,3]
[402269938,1768641043290,-500.0,0.00016438,3]
[402269940,1768641043300,-500.0,0.00016438,3]
[402269942,1768641043309,-693.24,0.00016438,3]
[402269944,1768641043319,-152.0,0.00016438,2]
[402269946,1768641043328,-152.0,0.00016438,2]
[402269948,1768641043337,-641.28,0.00016438,3]
[402269950,1768641043347,-500.0,0.00016438,3]
[402269952,1768641043356,-152.0,0.00016438,2]
[402269954,1768641043366,-301.61924279,0.00016438,2]
[402269956,1768641043375,-871.62,0.00016438,3]
[402269958,1768641043384,-152.0,0.00016438,2]
[402269960,1768641043394,-151.0,0.00016438,2]
[402269962,1768641043403,-500.0,0.00016438,3]
[402269964,1768641043414,-152.0,0.00016438,2]
[402269966,1768641043423,-2392.5,0.00016438,2]
[402269967,1768641043432,-2392.5,0.00016438,2]
[402269969,1768641043442,-2392.5,0.00016438,2]
[402269971,1768641043451,-2392.5,0.00016438,2]
[402269973,1768641043460,-2392.5,0.00016438,2]
[402269975,1768641043470,-2392.5,0.00016438,2]
[402269977,1768641043480,-1287.57,0.00016438,3]
[402269979,1768641043489,-2392.5,0.00016438,2]
[402269981,1768641043498,-2392.5,0.00016438,2]
[402269983,1768641043507,-2392.5,0.00016438,2]
[402269985,1768641043517,-2392.5,0.00016438,2]
[402269986,1768641043526,-2392.5,0.00016438,2]
[402269988,1768641043535,-2392.5,0.00016438,2]
[402269990,1768641043544,-2392.5,0.00016438,2]
[402269992,1768641043553,-2392.5,0.00016438,2]
[402269994,1768641043562,-2392.5,0.00016438,2]
[402269996,1768641043571,-2392.5,0.00016438,2]
[402269998,1768641043581,-1429.84,0.00016438,3]
[402270000,1768641043590,-2392.5,0.00016438,2]
[402270002,1768641043600,-2392.5,0.00016438,2]
[402270004,1768641043609,-500.0,0.00016438,3]
[402270006,1768641043619,-2392.5,0.00016438,2]
[402270008,1768641043627,-2392.5,0.00016438,2]
[402270010,1768641043637,-1670.99,0.00016438,3]
[402270012,1768641043646,-2392.5,0.00016438,2]
[402270014,1768641043656,-500.0,0.00016438,3]